bitfinex-derivatives/quotes_BTCF0:USTF0_20260127
["timestamp","ask_amount","ask_price","bid_price","bid_amount"]
[1769472237095,0.10196,88336.0,88325.0,1.011333]
[1769472237601,0.10196,88336.0,88326.0,0.16385409]
[1769472238504,0.10196,88336.0,88326.0,0.17407719]
[1769472238702,0.10196,88336.0,88327.0,0.011333]
[1769472238999,0.10196,88336.0,88326.0,0.16385409]
[1769472239200,0.10196,88336.0,88326.0,0.17518709]
[1769472239903,0.10196,88336.0,88326.0,0.16385409]
[1769472240203,0.113292,88336.0,88326.0,0.16385409]
[1769472241102,0.10196,88336.0,88326.0,0.16385409]
[1769472242001,0.10196,88336.0,88325.0,1.0]
[1769472242795,0.113292,88336.0,88325.0,1.0]
[1769472243909,0.10196,88336.0,88326.0,0.011333]
[1769472244091,0.10196,88336.0,88326.0,0.16385409]
[1769472244296,0.07196,88336.0,88327.0,0.01022043]
[1769472245604,0.083292,88336.0,88326.0,0.16385409]
[1769472246199,0.07196,88336.0,88327.0,0.0102163]
[1769472246398,0.07196,88336.0,88328.0,0.0102163]
[1769472246720,0.07196,88336.0,88329.0,0.011333]
[1769472247007,0.07196,88336.0,88328.0,0.0102163]
[1769472247208,0.07196,88336.0,88330.0,0.02140827]
[1769472247409,0.16385409,88360.0,88326.0,0.16385409]
[1769472247410,0.102,88345.0,88338.0,0.00910303]
[1769472247611,0.092,88344.0,88338.0,0.00910303]
[1769472247798,0.102,88345.0,88338.0,0.00910303]
[1769472248409,0.102,88345.0,88332.0,0.00910303]
[1769472248608,0.00947098,88344.0,88330.0,0.16385409]
[1769472249507,0.011331,88343.0,88330.0,0.16385409]
[1769472249718,0.011331,88341.0,88330.0,0.16385409]
[1769472250900,0.00947098,88343.0,88330.0,0.16385409]
[1769472251606,0.00947098,88343.0,88330.0,0.17295712]
[1769472252404,0.011331,88342.0,88330.0,0.17295712]
[1769472252905,0.02080198,88341.0,88330.0,0.16385409]
[1769472253215,0.011332,88333.0,88325.0,1.0]
[1769472253906,0.00947098,88334.0,88325.0,1.0]
[1769472254418,0.011332,88333.0,88325.0,1.0]
[1769472254606,0.00947098,88334.0,88325.0,1.0]
[1769472255318,0.02080298,88334.0,88325.0,1.0]
[1769472256219,0.011332,88332.0,88325.0,1.0]
[1769472257322,0.00947098,88334.0,88325.0,1.0]
[1769472258422,0.011332,88333.0,88325.0,1.0]
[1769472258924,0.011333,88330.0,88325.0,0.82785409]
[1769472259122,0.011332,88333.0,88325.0,0.82785409]
[1769472259324,0.011332,88332.0,88325.0,0.82785409]
[1769472259820,0.011332,88331.0,88325.0,0.82785409]
[1769472260524,0.011333,88330.0,88325.0,0.82785409]
[1769472262312,0.011332,88333.0,88325.0,0.82785409]
[1769472262514,0.011332,88332.0,88325.0,0.82785409]
[1769472263422,0.011333,88329.0,88325.0,0.82785409]
[1769472263624,0.011333,88331.0,88325.0,0.82785409]
[1769472263822,0.102,88334.0,88325.0,0.82785409]
[1769472264018,0.011333,88330.0,88325.0,0.82785409]
[1769472264229,0.102,88334.0,88325.0,0.82785409]
[1769472264816,0.011333,88329.0,88325.0,0.82785409]
[1769472265016,0.102,88334.0,88325.0,0.82785409]
[1769472265925,0.011333,88328.0,88325.0,0.25340509]
[1769472266126,0.102,88334.0,88325.0,0.25340509]
[1769472266515,0.011332,88332.0,88325.0,0.26284497]
[1769472267219,0.102,88334.0,88325.0,0.26284497]
[1769472267421,0.011332,88332.0,88325.0,0.26284497]
[1769472267825,0.011332,88332.0,88326.0,0.00943988]
[1769472268027,0.102,88334.0,88325.0,0.25340509]
[1769472268028,0.011333,88331.0,88325.0,0.25340509]
[1769472270025,0.011333,88331.0,88325.0,0.26284497]
[1769472270530,0.011333,88329.0,88325.0,0.26284497]
[1769472271230,0.102,88334.0,88325.0,0.26284497]
[1769472271231,0.011332,88332.0,88326.0,0.00943988]
[1769472273131,0.011333,88330.0,88326.0,8.8e-07]
[1769472273527,0.011333,88328.0,88320.0,0.16385409]
[1769472273721,0.102,88334.0,88320.0,0.16385409]
[1769472274233,0.011333,88326.0,88320.0,0.16385409]
[1769472274730,0.011333,88328.0,88320.0,0.16385409]
[1769472274931,0.011333,88329.0,88320.0,0.16385409]
[1769472275619,0.011332,88331.0,88321.0,0.00943988]
[1769472276332,0.011333,88330.0,88321.0,0.00943988]
[1769472276632,0.011333,88329.0,88321.0,0.00943988]
[1769472276934,0.011332,88333.0,88322.0,0.00943988]
[1769472277133,0.011333,88326.0,88322.0,0.00943988]
[1769472277435,0.011332,88333.0,88323.0,0.00943988]
[1769472277627,0.011333,88329.0,88323.0,0.00943988]
[1769472278132,0.011333,88328.0,88323.0,0.00943988]
[1769472279834,0.102,88334.0,88323.0,0.00943988]
[1769472279835,0.011333,88330.0,88323.0,0.00943988]
[1769472280521,0.011333,88328.0,88323.0,0.00943988]
[1769472281129,0.102,88334.0,88323.0,0.00943988]
[1769472281319,0.011333,88330.0,88323.0,0.00943988]
[1769472282023,0.011333,88329.0,88320.0,0.16385409]
[1769472282226,0.011333,88329.0,88320.0,0.17329397]
[1769472282732,0.011333,88329.0,88321.0,0.00943988]
[1769472282933,0.102,88331.0,88321.0,0.00943988]
[1769472283137,0.011333,88329.0,88321.0,0.00943988]
[1769472283324,0.011333,88328.0,88320.0,0.16385409]
[1769472283631,0.102,88331.0,88320.0,0.16385409]
[1769472284029,0.102,88331.0,88320.0,0.17329397]
[1769472284223,0.102,88331.0,88321.0,0.00943988]
[1769472285118,0.102,88331.0,88322.0,0.00943988]
[1769472285323,0.113333,88331.0,88322.0,0.00943988]
[1769472285622,0.102,88331.0,88322.0,0.00943988]
[1769472286034,0.102,88331.0,88323.0,0.00943988]
[1769472288634,0.00962328,88337.0,88323.0,0.00943988]
[1769472288835,0.011332,88334.0,88323.0,0.02077288]
[1769472289336,0.102,88333.0,88323.0,0.00943988]
[1769472290128,0.011333,88331.0,88323.0,0.00943988]
[1769472290539,0.113332,88333.0,88323.0,0.00943988]
[1769472292140,0.011333,88331.0,88323.0,0.00943988]
[1769472292334,0.011333,88331.0,88320.0,0.16385409]
[1769472292529,0.011333,88331.0,88320.0,0.17351612]
[1769472293237,0.00962328,88332.0,88320.0,0.17351612]
[1769472293630,0.102,88333.0,88320.0,0.17351612]
[1769472294338,0.011333,88330.0,88320.0,0.17351612]
[1769472295843,0.011332,88332.0,88321.0,0.00966203]
[1769472296243,0.102,88333.0,88321.0,0.00966203]
[1769472296244,0.102,88333.0,88322.0,0.011334]
[1769472296635,0.102,88333.0,88322.0,0.02099603]
[1769472296837,0.102,88333.0,88323.0,0.00966203]
[1769472297237,0.011332,88332.0,88320.0,0.00966203]
[1769472297439,0.011332,88332.0,88321.0,0.00966203]
[1769472298644,0.011333,88330.0,88321.0,0.00966203]
[1769472299742,0.011333,88328.0,88321.0,0.00966203]
[1769472299938,0.00962328,88332.0,88321.0,0.00966203]
[1769472300439,0.011333,88330.0,88321.0,0.00966203]
[1769472302045,0.011333,88330.0,88317.0,0.22616668]
[1769472302246,0.011333,88330.0,88311.0,0.22616668]
[1769472302247,0.00962328,88318.0,88311.0,0.22616668]
[1769472302438,0.00962328,88318.0,88309.0,0.22616668]
[1769472302637,0.011334,88319.0,88308.0,0.22616668]
[1769472303243,0.011334,88319.0,88306.0,0.00966203]
[1769472303244,0.102,88321.0,88306.0,0.00966203]
[1769472303448,0.102,88321.0,88309.0,0.00966203]
[1769472303645,0.102,88321.0,88303.0,0.00653845]
[1769472303646,0.00962328,88319.0,88304.0,0.011336]
[1769472303849,0.011334,88318.0,88304.0,0.011336]
[1769472304045,0.00962328,88319.0,88304.0,0.011336]
[1769472304251,0.00962328,88319.0,88305.0,0.00966203]
[1769472304642,0.02095728,88319.0,88305.0,0.00966203]
[1769472305053,0.02095728,88319.0,88303.0,0.00653845]
[1769472305054,0.00962328,88319.0,88306.0,0.02099803]
[1769472305353,0.00962328,88319.0,88307.0,0.00966203]
[1769472305548,0.00962328,88319.0,88307.0,0.00766203]
[1769472306348,0.113334,88321.0,88307.0,0.00766203]
[1769472306553,0.011334,88319.0,88307.0,0.00766203]
[1769472307353,0.102,88321.0,88303.0,0.00654004]
[1769472307554,0.102,88321.0,88311.0,0.011335]
[1769472307954,0.00962328,88320.0,88309.0,0.011335]
[1769472308156,0.102,88321.0,88309.0,0.02099703]
[1769472308551,0.102,88321.0,88310.0,0.00966203]
[1769472309863,0.113334,88321.0,88310.0,0.00966203]
[1769472310856,0.00962328,88314.0,88303.0,0.00654004]
[1769472311162,0.00962328,88314.0,88301.0,0.00013078]
[1769472311465,0.00962328,88314.0,88302.0,0.00654054]
[1769472311764,0.02095828,88313.0,88302.0,0.00654054]
[1769472311956,0.02095828,88313.0,88301.0,0.00013078]
[1769472312162,0.00038425,88313.0,88302.0,0.00654054]
[1769472312366,0.00038425,88313.0,88298.0,0.00966203]
[1769472312757,0.011336,88306.0,88292.0,0.28174188]
[1769472313064,0.102,88305.0,88290.0,0.02100003]
[1769472313259,8.391e-05,88304.0,88290.0,0.02100003]
[1769472313459,8.391e-05,88304.0,88291.0,0.00966203]
[1769472313966,8.391e-05,88304.0,88292.0,0.011337]
[1769472314862,8.391e-05,88304.0,88293.0,0.00966203]
[1769472315464,8.391e-05,88304.0,88295.0,0.011337]
[1769472315662,8.391e-05,88304.0,88298.0,0.00966203]
[1769472320268,0.102,88312.0,88302.0,0.00949695]
[1769472320462,0.39,88311.0,88302.0,0.00949695]
[1769472320662,0.39,88318.0,88302.0,0.00949695]
[1769472320970,0.113374,88317.0,88303.0,0.00741256]
[1769472321269,0.011335,88315.0,88303.0,0.00741256]
[1769472321472,0.011335,88313.0,88303.0,0.00741256]
[1769472321771,0.39,88315.0,88303.0,0.00741256]
[1769472322271,0.39,88315.0,88303.0,0.01874856]
[1769472324476,0.39,88315.0,88305.0,0.011336]
[1769472326272,0.39,88315.0,88307.0,0.011336]
[1769472326473,0.39,88315.0,88304.0,0.011336]
[1769472328176,0.39965343,88315.0,88304.0,0.011336]
[1769472329677,0.39965343,88315.0,88305.0,0.011336]
[1769472329976,0.00965343,88314.0,88307.0,0.011335]
[1769472330170,0.00965343,88314.0,88308.0,0.011335]
[1769472330362,0.39,88315.0,88308.0,0.011335]
[1769472330567,0.00965343,88314.0,88299.0,0.007643]
[1769472330975,0.00965343,88314.0,88303.0,0.011336]
[1769472331368,0.01140297,88316.0,88288.0,0.22597017]
[1769472331369,0.00965343,88304.0,88288.0,0.22597017]
[1769472331668,0.011337,88294.0,88283.0,0.0076322]
[1769472331867,0.7773624,88303.0,88283.0,0.0076322]
[1769472332070,0.011337,88297.0,88283.0,0.0076322]
[1769472332469,0.011338,88288.0,88261.0,0.00949695]
[1769472332677,0.011338,88288.0,88259.0,0.28174188]
[1769472332678,0.011338,88286.0,88269.0,0.01134]
[1769472332866,6.897e-05,88285.0,88261.0,0.00949695]
[1769472333068,6.897e-05,88285.0,88266.0,0.00949695]
[1769472333271,0.48976,88288.0,88271.0,0.00949695]
[1769472333469,0.48976,88288.0,88279.0,0.011339]
[1769472333873,0.48976,88288.0,88274.0,0.00949695]
[1769472334072,0.48976,88288.0,88278.0,0.011339]
[1769472334274,0.48976,88288.0,88277.0,0.011339]
[1769472334473,0.49941343,88288.0,88277.0,0.011339]
[1769472335476,0.00965343,88287.0,88277.0,0.011339]
[1769472336277,0.00965343,88287.0,88274.0,0.00949695]
[1769472337182,0.48976,88288.0,88276.0,0.00949695]
[1769472337675,0.48976,88288.0,88278.0,0.011339]
[1769472338177,0.48976,88288.0,88276.0,0.00949695]
[1769472338377,0.49941343,88288.0,88267.0,0.10204]
[1769472338681,0.49941343,88288.0,88271.0,0.21563549]
[1769472339180,0.01134,88272.0,88248.0,0.011343]
[1769472339368,0.01134,88272.0,88246.0,0.011343]
[1769472339369,0.00965343,88271.0,88255.0,0.011292]
[1769472339573,0.00965343,88271.0,88252.0,0.011343]
[1769472339772,0.00965343,88271.0,88255.0,0.011342]
[1769472340082,0.00965343,88271.0,88256.0,0.10204]
[1769472340287,0.00965343,88271.0,88257.0,0.011342]
[1769472341077,0.10204,88277.0,88256.0,0.10204]
[1769472341078,0.10204,88277.0,88267.0,0.00949695]
[1769472341266,0.10204,88277.0,88269.0,0.01134]
[1769472341474,0.10204,88277.0,88268.0,0.00949695]
[1769472341782,0.011339,88283.0,88265.0,0.011341]
[1769472341983,0.011339,88283.0,88263.0,0.00949695]
[1769472341984,0.011339,88281.0,88263.0,0.00949695]
[1769472342186,0.011339,88281.0,88264.0,0.21563549]
[1769472342576,0.011339,88284.0,88267.0,0.011341]
[1769472342776,0.11328556,88280.0,88264.0,0.22692649]
[1769472343083,0.00965343,88280.0,88264.0,0.22692649]
[1769472343285,0.00965343,88279.0,88264.0,0.22692649]
[1769472343985,0.00965343,88277.0,88266.0,0.011341]
[1769472345981,0.38892,88286.0,88272.0,0.01134]
[1769472346181,0.38892,88286.0,88273.0,0.00949695]
[1769472346386,0.10204,88288.0,88278.0,0.011339]
[1769472346387,8.4e-07,88283.0,88278.0,0.011339]
[1769472346590,0.10204,88288.0,88278.0,0.011339]
[1769472346788,0.10204,88288.0,88275.0,0.00949695]
[1769472346982,0.11327529,88287.0,88276.0,0.011339]
[1769472347188,0.11327529,88287.0,88275.0,0.00949695]
[1769472347379,0.12461329,88287.0,88273.0,0.01134]
[1769472347579,0.12461329,88287.0,88274.0,0.21558549]
[1769472347787,0.011338,88285.0,88274.0,0.21558549]
[1769472348088,0.00965343,88284.0,88274.0,0.21558549]
[1769472348479,0.00965343,88284.0,88274.0,0.22692549]
[1769472349774,0.00965343,88284.0,88276.0,0.011339]
[1769472350088,0.10204,88288.0,88278.0,0.011339]
[1769472350386,0.10204,88288.0,88275.0,0.00979984]
[1769472350579,0.09204,88288.0,88282.0,0.011339]
[1769472351484,0.00944208,88294.0,88275.0,0.00979984]
[1769472351686,0.11152208,88299.0,88289.0,0.011338]
[1769472351889,0.00944208,88299.0,88289.0,0.011338]
[1769472352292,0.00944208,88299.0,88286.0,0.011338]
[1769472352490,0.11327016,88298.0,88286.0,0.011338]
[1769472354985,0.00164174,88294.0,88285.0,0.19830073]
[1769472355183,0.00164174,88294.0,88281.0,0.10208]
[1769472355395,0.00164174,88294.0,88282.0,0.19830073]
[1769472355592,0.00015954,88292.0,88282.0,0.19830073]
[1769472357395,0.00015954,88292.0,88283.0,0.011339]
[1769472357595,0.00015954,88292.0,88282.0,0.20963973]
[1769472357799,0.00015954,88292.0,88282.0,0.19830073]
[1769472357981,0.10208,88301.0,88282.0,0.19830073]
[1769472357982,0.011337,88297.0,88282.0,0.19830073]
[1769472358189,0.01154086,88297.0,88282.0,0.19830073]
[1769472358386,0.00020386,88297.0,88282.0,0.19830073]
[1769472358587,0.00020386,88296.0,88282.0,0.20963973]
[1769472358788,0.00020386,88292.0,88282.0,0.19830073]
[1769472359187,0.011338,88291.0,88282.0,0.19830073]
[1769472359394,0.01154186,88292.0,88282.0,0.19830073]
[1769472359593,0.00020386,88292.0,88282.0,0.19830073]
[1769472360497,0.011337,88296.0,88282.0,0.19830073]
[1769472360799,0.11326695,88295.0,88281.0,0.00993411]
[1769472360997,0.11326695,88295.0,88281.0,0.20823484]
[1769472361495,0.011338,88290.0,88281.0,0.19830073]
[1769472361698,0.00016737,88280.0,88267.0,0.10204]
[1769472361996,0.00016737,88278.0,88267.0,0.011341]
[1769472362195,0.00016737,88278.0,88269.0,0.01134]
[1769472362693,0.00016737,88278.0,88260.0,0.17396742]
[1769472362694,0.00016737,88278.0,88262.0,0.0099442]
[1769472362995,0.011338,88288.0,88268.0,0.16402322]
[1769472363193,0.011338,88288.0,88273.0,0.01134]
[1769472363393,0.011338,88286.0,88273.0,0.01134]
[1769472363588,0.11328428,88287.0,88273.0,0.01134]
[1769472363791,0.113378,88289.0,88273.0,0.01134]
[1769472364096,0.11327658,88288.0,88279.0,0.16402322]
[1769472364301,0.39012,88287.0,88280.0,0.011339]
[1769472365098,0.11327144,88286.0,88280.0,0.011339]
[1769472365597,0.11327144,88286.0,88278.0,0.011339]
[1769472365800,0.11327144,88286.0,88277.0,0.011339]
[1769472366392,0.11327144,88286.0,88267.0,0.011341]
[1769472366393,0.01134,88272.0,88243.0,0.011344]
[1769472366593,0.49276,88271.0,88260.0,0.16402322]
[1769472366798,0.011339,88281.0,88261.0,0.01000533]
[1769472367095,0.011336,88305.0,88260.0,0.16402322]
[1769472367096,0.11330353,88279.0,88270.0,0.1739995]
[1769472367302,0.11330353,88279.0,88271.0,0.02131628]
[1769472367603,0.113419,88284.0,88271.0,0.00997628]
[1769472367797,0.011339,88282.0,88270.0,0.16402322]
[1769472369398,0.011339,88280.0,88265.0,0.00997628]
[1769472369695,0.011339,88278.0,88265.0,0.00997628]
[1769472369901,0.011339,88281.0,88265.0,0.00997628]
[1769472370200,0.011339,88279.0,88265.0,0.00997628]
[1769472370400,0.16402322,88280.0,88259.0,0.0100992]
[1769472370593,0.01134,88275.0,88257.0,0.011342]
[1769472371087,0.01134,88275.0,88260.0,0.16402322]
[1769472371491,0.011339,88278.0,88261.0,0.011341]
[1769472371898,0.1132939,88279.0,88261.0,0.011341]
[1769472372104,0.01134,88276.0,88261.0,0.011341]
[1769472372506,0.12462841,88279.0,88261.0,0.011341]
[1769472372712,0.011339,88279.0,88261.0,0.011341]
[1769472372900,0.11328941,88278.0,88263.0,0.011341]
[1769472373304,0.011339,88282.0,88263.0,0.011341]
[1769472373605,0.011339,88280.0,88263.0,0.011341]
[1769472374208,0.11328684,88279.0,88263.0,0.011341]
[1769472375513,0.11328684,88279.0,88265.0,0.011341]
[1769472376409,0.11328684,88279.0,88260.0,0.16402322]
[1769472376410,0.16402322,88300.0,88273.0,0.01134]
[1769472376712,0.1132862,88282.0,88272.0,0.02144401]
[1769472376912,0.10208,88281.0,88272.0,0.02144401]
[1769472377306,0.10208,88281.0,88274.0,0.01134]
[1769472377613,0.1132708,88280.0,88274.0,0.01134]
[1769472378207,0.0732708,88280.0,88274.0,0.01134]
[1769472378613,0.10208,88285.0,88277.0,0.011339]
[1769472378815,0.011338,88291.0,88274.0,0.0210184]
[1769472379113,0.11327978,88280.0,88274.0,0.0210184]
[1769472379303,0.39136,88289.0,88274.0,0.0210184]
[1769472379703,0.011338,88287.0,88274.0,0.0096784]
[1769472379907,0.11327465,88288.0,88274.0,0.0096784]
[1769472380103,0.39136,88289.0,88274.0,0.0096784]
[1769472380308,0.39136,88289.0,88242.0,0.011344]
[1769472380309,0.00906244,88282.0,88262.0,0.10208]
[1769472380509,0.00906244,88282.0,88270.0,0.16402322]
[1769472381013,0.11327401,88281.0,88270.0,0.16402322]
[1769472381713,0.11327401,88281.0,88270.0,0.17536322]
[1769472383113,0.11327401,88281.0,88272.0,0.01134]
[1769472384210,0.11327401,88281.0,88270.0,0.16402322]
[1769472384416,0.11327401,88281.0,88271.0,0.01134]
[1769472384616,0.11327401,88281.0,88270.0,0.16402322]
[1769472385221,0.11327401,88281.0,88271.0,0.01134]
[1769472385717,0.11327401,88281.0,88272.0,0.01134]
[1769472386308,0.11327401,88281.0,88273.0,0.01134]
[1769472386514,0.00046673,88280.0,88270.0,0.16402322]
[1769472386708,0.00046673,88280.0,88262.0,0.00987279]
[1769472386915,0.00046673,88284.0,88271.0,0.02121279]
[1769472387113,0.00046673,88284.0,88273.0,0.01134]
[1769472387618,0.00046673,88284.0,88271.0,0.00987279]
[1769472387812,0.11328235,88283.0,88271.0,0.02121279]
[1769472388719,0.11328235,88283.0,88272.0,0.01134]
[1769472388909,0.11328235,88283.0,88273.0,0.01134]
[1769472390419,0.11328235,88283.0,88277.0,0.011339]
[1769472390717,0.10259017,88290.0,88276.0,0.00987279]
[1769472390718,0.10208,88290.0,88276.0,0.00987279]
[1769472390924,0.10208,88290.0,88281.0,0.011339]
[1769472391114,0.11327594,88288.0,88282.0,0.011339]
[1769472391422,0.10208,88290.0,88280.0,0.16402322]
[1769472391622,0.11327594,88289.0,88280.0,0.16402322]
[1769472391922,0.10208,88290.0,88280.0,0.16402322]
[1769472392224,0.00048866,88288.0,88271.0,0.00987279]
[1769472392822,0.11327016,88287.0,88276.0,0.011339]
[1769472393022,0.11375882,88287.0,88276.0,0.011339]
[1769472393323,0.00048866,88287.0,88276.0,0.011339]
[1769472393622,0.11327658,88286.0,88271.0,0.00987279]
[1769472394123,0.11327658,88286.0,88272.0,0.00987279]
[1769472394424,0.11374223,88286.0,88273.0,0.01134]
[1769472394809,0.11374223,88286.0,88274.0,0.00987279]
[1769472394810,0.11327658,88286.0,88274.0,0.00987279]
[1769472395014,0.11327658,88286.0,88275.0,0.00987279]
[1769472395324,0.011338,88286.0,88275.0,0.00987279]
[1769472395622,0.12486183,88289.0,88275.0,0.00987279]
[1769472395821,0.00024725,88286.0,88269.0,0.00991758]
[1769472396324,0.00024725,88286.0,88270.0,0.16402322]
[1769472396522,0.00024725,88285.0,88272.0,0.01134]
[1769472396713,0.00024725,88285.0,88270.0,0.16402322]
[1769472396714,0.011339,88279.0,88266.0,0.07698]
[1769472397019,0.16402322,88282.0,88266.0,0.07698]
[1769472397226,0.01134,88274.0,88266.0,0.07698]
[1769472399322,4.447e-05,88273.0,88266.0,0.07698]
[1769472405732,4.447e-05,88273.0,88260.0,0.17397898]
[1769472405931,0.10208,88278.0,88257.0,0.00996663]
[1769472405932,0.00010009,88275.0,88257.0,0.00996663]
[1769472406228,0.01134,88272.0,88260.0,0.16402322]
[1769472406424,0.00010009,88275.0,88260.0,0.17398985]
[1769472406836,0.11328941,88274.0,88260.0,0.17398985]
[1769472407131,0.1133895,88274.0,88260.0,0.17398985]
[1769472407335,0.1247295,88274.0,88260.0,0.17398985]
[1769472408134,0.01134,88271.0,88260.0,0.17398985]
[1769472408433,0.01134,88273.0,88260.0,0.17398985]
[1769472409925,0.01134,88273.0,88260.0,0.01006719]
[1769472411224,0.01134,88275.0,88260.0,0.01006719]
[1769472412029,0.01134,88275.0,88261.0,0.0100603]
[1769472412225,0.11329198,88274.0,88261.0,0.0100603]
[1769472412634,0.01134,88273.0,88261.0,0.0100603]
[1769472413050,0.01134,88271.0,88260.0,0.16402322]
[1769472413335,0.011341,88268.0,88256.0,0.07523]
[1769472413526,0.11329262,88272.0,88256.0,0.07523]
[1769472413724,0.10208,88278.0,88256.0,0.0853132]
[1769472413925,0.11329262,88277.0,88256.0,0.0853132]
[1769472414121,0.011341,88269.0,88256.0,0.0853132]
[1769472414530,0.011341,88267.0,88257.0,0.0100832]
[1769472415135,0.01134,88271.0,88258.0,0.01012688]
[1769472415337,0.01134,88271.0,88261.0,0.01012688]
[1769472416038,0.11329904,88270.0,88261.0,0.01012688]
[1769472417625,0.01134,88269.0,88261.0,0.01012688]
[1769472418325,0.11329519,88268.0,88261.0,0.01012688]
[1769472418931,0.011341,88269.0,88261.0,0.01012688]
[1769472419737,0.11329583,88268.0,88261.0,0.01012688]
[1769472420334,0.11329583,88268.0,88257.0,0.01011233]
[1769472420540,0.011341,88267.0,88257.0,0.01011233]
[1769472420929,0.011341,88267.0,88256.0,0.07523]
[1769472421332,0.011341,88267.0,88252.0,0.02145433]
[1769472421333,0.01134,88275.0,88252.0,0.01011233]
[1769472421640,0.01134,88273.0,88246.0,0.01002814]
[1769472422030,0.01134,88273.0,88247.0,0.011343]
[1769472422335,0.11330225,88272.0,88248.0,0.01002814]
[1769472423033,0.01138199,88263.0,88248.0,0.01002814]
[1769472423735,0.01138199,88263.0,88245.0,8.56e-05]
[1769472423736,0.01134,88274.0,88256.0,0.00998633]
[1769472423937,4.099e-05,88282.0,88260.0,0.02132833]
[1769472424133,0.1133016,88272.0,88261.0,0.00998633]
[1769472424443,0.011339,88278.0,88263.0,0.00998633]
[1769472424936,4.099e-05,88280.0,88265.0,0.00998633]
[1769472425131,0.11328813,88277.0,88265.0,0.00998633]
[1769472425334,4.099e-05,88280.0,88265.0,0.00998633]
[1769472425535,0.011339,88277.0,88265.0,0.00998633]
[1769472426436,0.01134,88275.0,88265.0,0.00998633]
[1769472426643,0.11328748,88276.0,88265.0,0.00998633]
[1769472426842,0.011339,88278.0,88265.0,0.00998633]
[1769472427144,0.11328813,88277.0,88265.0,0.00998633]
[1769472427736,0.01134,88276.0,88265.0,0.00998633]
[1769472428031,0.11328813,88277.0,88265.0,0.00998633]
[1769472428032,0.011339,88277.0,88265.0,0.00998633]
[1769472428236,4.099e-05,88280.0,88265.0,0.00998633]
[1769472428436,0.06375857,88286.0,88270.0,0.00995355]
[1769472428437,0.11328813,88279.0,88270.0,0.00995355]
[1769472428638,0.10208,88282.0,88270.0,0.00995355]
[1769472428841,0.011339,88281.0,88270.0,0.00995355]
[1769472429548,0.11328107,88280.0,88270.0,0.00995355]
[1769472436551,0.11328107,88280.0,88266.0,0.01001116]
[1769472436750,0.011339,88279.0,88266.0,0.01001116]
[1769472436950,0.08462007,88280.0,88266.0,0.01001116]
[1769472437253,0.10208,88282.0,88266.0,0.01001116]
[1769472437442,0.11328556,88281.0,88266.0,0.01001116]
[1769472438354,0.011339,88279.0,88266.0,0.01001116]
[1769472438953,0.11328428,88278.0,88266.0,0.01001116]
[1769472439147,0.11328428,88278.0,88270.0,0.00996611]
[1769472439346,0.10208,88282.0,88270.0,0.00996611]
[1769472439547,0.11328556,88281.0,88270.0,0.00996611]
[1769472439854,0.10208,88282.0,88270.0,0.00996611]
[1769472440157,0.11328556,88281.0,88270.0,0.00996611]
[1769472441153,0.11328556,88281.0,88272.0,0.01134]
[1769472441353,9.683e-05,88297.0,88282.0,0.02130672]
[1769472441561,0.10208,88298.0,88286.0,0.00996772]
[1769472441755,0.11328171,88295.0,88286.0,0.00996772]
[1769472441949,0.10208,88298.0,88286.0,0.00996772]
[1769472442355,0.11326246,88297.0,88286.0,0.00996772]
[1769472442857,0.11326246,88297.0,88287.0,0.02130572]
[1769472443059,0.11326246,88297.0,88289.0,0.011338]
[1769472443256,0.06026431,88298.0,88289.0,0.00992816]
[1769472443553,0.05026431,88298.0,88294.0,0.011337]
[1769472443750,0.05026431,88298.0,88292.0,0.00937109]
[1769472444860,0.39792,88307.0,88294.0,0.02070809]
[1769472445161,0.11325669,88304.0,88294.0,0.02070809]
[1769472445551,0.39792,88307.0,88294.0,0.02070809]
[1769472445752,0.11325669,88306.0,88294.0,0.02070809]
[1769472445951,0.11325669,88306.0,88294.0,0.00937109]
[1769472446559,0.1222971,88306.0,88294.0,0.00937109]
[1769472446761,0.00904041,88305.0,88285.0,0.00937109]
[1769472447461,0.11325669,88304.0,88285.0,0.00937109]
[1769472447958,0.11325669,88304.0,88292.0,0.011337]
[1769472448552,0.11325669,88304.0,88290.0,0.00937109]
[1769472448553,0.00904041,88303.0,88290.0,0.00937109]
[1769472448753,0.00904041,88301.0,88286.0,0.00937109]
[1769472450365,0.00904041,88301.0,88290.0,0.011338]
[1769472451160,0.00904041,88301.0,88286.0,0.00937109]
[1769472451362,0.00904041,88296.0,88283.0,0.011339]
[1769472452358,0.00904041,88296.0,88283.0,0.02071009]
[1769472453167,0.00904041,88296.0,88285.0,0.011338]
[1769472455166,0.00904041,88302.0,88285.0,0.011338]
[1769472455568,0.00904041,88302.0,88287.0,0.011338]
[1769472457959,0.00904041,88300.0,88287.0,0.011338]
[1769472458358,0.00904041,88300.0,88284.0,0.011338]
[1769472458562,0.00904041,88300.0,88285.0,0.011338]
[1769472459167,0.02037741,88300.0,88285.0,0.011338]
[1769472459371,0.00904041,88299.0,88285.0,0.011338]
[1769472460074,0.00904041,88298.0,88285.0,0.011338]
[1769472461175,0.00904041,88298.0,88283.0,0.10204]
[1769472461176,0.00904041,88298.0,88286.0,0.011338]
[1769472464275,0.00904041,88298.0,88287.0,0.011338]
[1769472464880,0.00904041,88298.0,88288.0,0.011338]
[1769472465578,0.00904041,88298.0,88284.0,0.00937109]
[1769472465779,0.00904041,88298.0,88290.0,0.011338]
[1769472466477,0.00904041,88298.0,88288.0,0.011338]
[1769472467982,0.00904041,88298.0,88287.0,0.011338]
[1769472470184,0.00904041,88298.0,88285.0,0.011338]
[1769472470683,0.00904041,88298.0,88286.0,0.011338]
[1769472470883,0.00904041,88298.0,88286.0,0.02105148]
[1769472471180,0.00904041,88298.0,88286.0,0.13554617]
[1769472471983,0.00927122,88297.0,88286.0,0.13554617]
[1769472472379,0.00927122,88297.0,88286.0,0.14688417]
[1769472473277,0.00927122,88297.0,88287.0,0.13554617]
[1769472473981,0.00927122,88297.0,88289.0,0.13554617]
[1769472474588,0.00927122,88295.0,88289.0,0.13554617]
[1769472475488,0.02060822,88295.0,88288.0,0.13554617]
[1769472476888,0.00927122,88295.0,88288.0,0.13554617]
[1769472478196,0.011337,88298.0,88288.0,0.13554617]
[1769472482896,0.011337,88298.0,88290.0,0.13554617]
[1769472483298,0.00927122,88295.0,88290.0,0.13554617]
[1769472483595,0.00927122,88295.0,88290.0,0.12554617]
[1769472483894,0.00927122,88291.0,88283.0,0.16979953]
[1769472484896,0.00927122,88291.0,88282.0,0.24927953]